bitfinex-derivatives/quotes_BTCF0:USTF0_20241104
["timestamp","ask_amount","ask_price","bid_price","bid_amount"]
[1730704816833,0.55100111,69084.0,69083.0,0.00082566]
[1730704817031,0.56300111,69084.0,69083.0,0.00082566]
[1730704817931,0.22548111,69084.0,69083.0,0.00082566]
[1730704818334,0.072427,69079.0,69078.0,0.073428]
[1730704818537,0.433227,69079.0,69078.0,0.073428]
[1730704819031,0.433227,69079.0,69078.0,0.072428]
[1730704819433,0.440227,69079.0,69078.0,0.072428]
[1730704820136,0.440227,69079.0,69078.0,0.1637601]
[1730704820137,0.449227,69079.0,69078.0,0.1637601]
[1730704820345,0.088427,69079.0,69078.0,0.072428]
[1730704821738,0.086427,69079.0,69078.0,0.073428]
[1730704822537,0.079427,69079.0,69078.0,0.072428]
[1730704822741,0.073427,69079.0,69078.0,0.077428]
[1730704822921,0.074427,69079.0,69078.0,0.082428]
[1730704824629,0.002,69079.0,69078.0,0.082428]
[1730704824831,0.001,69079.0,69078.0,0.077428]
[1730704825035,0.002,69079.0,69078.0,0.082428]
[1730704825330,0.001,69079.0,69078.0,0.077428]
[1730704825537,0.002,69079.0,69078.0,0.082428]
[1730704825749,0.001,69079.0,69078.0,0.077428]
[1730704825931,0.002,69079.0,69078.0,0.082428]
[1730704827032,0.001,69079.0,69078.0,0.077428]
[1730704827228,0.002,69079.0,69078.0,0.082428]
[1730704831839,0.001,69079.0,69078.0,0.077428]
[1730704832035,0.002,69079.0,69078.0,0.082428]
[1730704834644,0.001,69079.0,69078.0,0.077428]
[1730704834839,0.002,69079.0,69078.0,0.082428]
[1730704841351,0.002,69079.0,69078.0,0.17376115]
[1730704841547,0.074427,69079.0,69078.0,0.082428]
[1730704841734,0.52656015,69079.0,69078.0,0.082428]
[1730704841936,0.55886015,69079.0,69078.0,0.01]
[1730704842644,0.59118973,69079.0,69078.0,0.01]
[1730704843142,0.55886015,69079.0,69078.0,0.01]
[1730704843341,0.59118085,69079.0,69078.0,0.01]
[1730704844338,0.59018085,69079.0,69078.0,0.006]
[1730704844542,0.58918085,69079.0,69078.0,0.002]
[1730704845236,0.59618085,69079.0,69078.0,0.001]
[1730704845445,0.60318085,69079.0,69078.0,0.001]
[1730704846336,0.072437,69070.0,69062.0,0.04333834]
[1730704846545,0.52457015,69070.0,69063.0,0.072444]
[1730704846850,0.52457015,69070.0,69062.0,0.072445]
[1730704847549,0.437237,69070.0,69064.0,0.072443]
[1730704847751,0.52857015,69070.0,69064.0,0.072443]
[1730704848052,0.441237,69070.0,69064.0,0.072443]
[1730704848352,0.433237,69070.0,69064.0,0.072443]
[1730704848651,0.49314296,69070.0,69064.0,0.072443]
[1730704848848,0.58447611,69070.0,69064.0,0.072443]
[1730704849043,0.57047611,69070.0,69059.0,0.3608]
[1730704849251,0.58247611,69070.0,69059.0,0.3608]
[1730704849452,0.58247611,69070.0,69059.0,0.433247]
[1730704849853,0.58247611,69070.0,69060.0,0.072447]
[1730704850152,0.60484101,69070.0,69060.0,0.072447]
[1730704850748,0.60284101,69070.0,69060.0,0.072447]
[1730704851344,0.60184101,69070.0,69060.0,0.072447]
[1730704851553,0.60384101,69070.0,69060.0,0.072447]
[1730704851957,0.60684101,69070.0,69060.0,0.072447]
[1730704852253,0.60688325,69070.0,69055.0,0.21762078]
[1730704852764,0.072452,69056.0,69055.0,0.21762078]
[1730704853057,0.072452,69056.0,69055.0,0.072452]
[1730704854249,0.09133315,69057.0,69045.0,0.09133315]
[1730704854444,0.16378915,69053.0,69052.0,0.072456]
[1730704855547,0.16478915,69053.0,69052.0,0.072456]
[1730704855951,0.16578915,69053.0,69052.0,0.072456]
[1730704856361,0.16478915,69053.0,69052.0,0.072456]
[1730704856552,0.16578915,69053.0,69052.0,0.072456]
[1730704857053,0.074456,69053.0,69052.0,0.072456]
[1730704857957,0.073456,69053.0,69052.0,0.072456]
[1730704858151,0.074456,69053.0,69052.0,0.072456]
[1730704858553,0.072456,69053.0,69052.0,0.072456]
[1730704858758,0.074456,69053.0,69052.0,0.072456]
[1730704859058,0.16578915,69053.0,69052.0,0.072456]
[1730704859468,0.16478915,69053.0,69052.0,0.072456]
[1730704860464,0.16378915,69053.0,69052.0,0.072456]
[1730704861153,0.072461,69049.0,69048.0,0.072457]
[1730704861352,0.16379415,69049.0,69048.0,0.072457]
[1730704862356,0.16479415,69049.0,69048.0,0.072457]
[1730704863560,0.16579415,69049.0,69048.0,0.072457]
[1730704863948,0.16479415,69049.0,69048.0,0.072457]
[1730704864156,0.16579415,69049.0,69048.0,0.072457]
[1730704865160,0.16479415,69049.0,69048.0,0.072457]
[1730704865353,0.16579415,69049.0,69048.0,0.072457]
[1730704865749,0.16479415,69049.0,69048.0,0.072457]
[1730704865959,0.16579415,69049.0,69048.0,0.072457]
[1730704866161,0.09333315,69049.0,69043.0,0.36156]
[1730704866353,0.072464,69046.0,69045.0,0.072461]
[1730704866565,0.16379715,69046.0,69045.0,0.072461]
[1730704868266,0.072465,69044.0,69043.0,0.072465]
[1730704868653,0.072465,69044.0,69037.0,0.50681058]
[1730704868654,0.07247,69038.0,69037.0,0.57848158]
[1730704868859,0.16380315,69038.0,69037.0,0.57848158]
[1730704869653,0.26040315,69038.0,69030.0,0.3608]
[1730704869968,0.072479,69030.0,69029.0,0.0746514]
[1730704870668,0.072479,69030.0,69029.0,0.0021724]
[1730704871265,0.21177151,69030.0,69029.0,0.0021724]
[1730704871466,0.21277151,69030.0,69029.0,0.0021724]
[1730704872158,0.21277151,69030.0,69029.0,0.0746524]
[1730704872761,0.23562873,69030.0,69029.0,0.0746524]
[1730704872960,0.23662873,69030.0,69029.0,0.0746524]
[1730704875559,0.074479,69030.0,69029.0,0.0746524]
[1730704876056,0.002,69030.0,69029.0,0.0746524]
[1730704882283,0.21377151,69030.0,69029.0,0.0746524]
[1730704882578,0.31029151,69030.0,69029.0,0.0746524]
[1730704882773,0.31029151,69030.0,69029.0,0.0021724]
[1730704883182,0.67109151,69030.0,69029.0,0.0021724]
[1730704884072,0.67109151,69030.0,69024.0,0.072484]
[1730704884073,0.072484,69025.0,69024.0,0.072484]
[1730704884384,0.21177651,69025.0,69024.0,0.072484]
[1730704885492,0.21277651,69025.0,69024.0,0.072484]
[1730704885798,0.21377651,69025.0,69024.0,0.072484]
[1730704887179,0.074484,69025.0,69024.0,0.072484]
[1730704891485,0.002,69025.0,69024.0,0.072484]
[1730704892189,0.002,69025.0,69024.0,0.11582234]
[1730704892491,0.002,69025.0,69024.0,0.072484]
[1730704892692,0.002,69025.0,69024.0,0.11583077]
[1730704892897,0.002,69025.0,69024.0,0.1158306]
[1730704893191,0.002,69025.0,69024.0,0.072484]
[1730704893592,0.002,69025.0,69024.0,0.104284]
[1730704894485,0.002,69025.0,69024.0,0.14764139]
[1730704894694,0.002,69025.0,69024.0,0.104284]
[1730704895190,0.002,69025.0,69024.0,0.14764139]
[1730704895895,0.002,69025.0,69024.0,0.11584139]
[1730704896289,0.002,69025.0,69024.0,0.11588787]
[1730704896592,0.002,69025.0,69024.0,0.072484]
[1730704896901,0.21377651,69025.0,69024.0,0.11588803]
[1730704898187,0.21377651,69025.0,69024.0,0.072484]
[1730704898995,0.21377651,69025.0,69022.0,0.04343625]
[1730704899197,0.072486,69023.0,69022.0,0.04343625]
[1730704899498,0.072486,69023.0,69022.0,0.072487]
[1730704901896,0.073486,69023.0,69022.0,0.072487]
[1730704902596,0.074486,69023.0,69022.0,0.072487]
[1730704904198,0.09753318,69023.0,69022.0,0.072487]
[1730704905086,0.09753318,69023.0,69022.0,0.11592095]
[1730704905484,0.074486,69023.0,69022.0,0.11592095]
[1730704907395,0.074486,69023.0,69022.0,0.072487]
[1730704909297,0.074486,69023.0,69022.0,0.11592186]
[1730704911296,0.074486,69023.0,69022.0,0.072487]
[1730704913302,0.072488,69021.0,69020.0,0.13023089]
[1730704914503,0.074488,69021.0,69020.0,0.072489]
[1730704915398,0.16590189,69021.0,69020.0,0.072489]
[1730704918303,0.07249,69019.0,69018.0,0.072491]
[1730704920301,0.07349,69019.0,69018.0,0.072491]
[1730704921008,0.07449,69019.0,69018.0,0.072491]
[1730704921407,0.07349,69019.0,69018.0,0.072491]
[1730704921602,0.07449,69019.0,69018.0,0.072491]
[1730704923714,0.07349,69019.0,69018.0,0.072491]
[1730704923913,0.07449,69019.0,69018.0,0.072491]
[1730704925206,0.002,69019.0,69018.0,0.22164678]
[1730704925603,0.002,69019.0,69018.0,0.16390489]
[1730704925809,0.002,69019.0,69018.0,0.22189603]
[1730704927109,0.07449,69019.0,69018.0,0.13048214]
[1730704927716,0.002,69019.0,69018.0,0.13048214]
[1730704927918,0.002,69019.0,69018.0,0.22189603]
[1730704928106,0.002,69019.0,69018.0,0.13048214]
[1730704929706,0.002,69019.0,69018.0,0.072491]
[1730704931214,0.002,69019.0,69018.0,0.16390489]
[1730704931906,0.002,69019.0,69018.0,0.072491]
[1730704932221,0.09341389,69019.0,69018.0,0.072491]
[1730704932708,0.16590389,69019.0,69018.0,0.072491]
[1730704935115,0.16590389,69019.0,69018.0,0.13050094]
[1730704937115,0.16590389,69019.0,69018.0,0.072491]
[1730704937515,0.16590389,69019.0,69018.0,0.11599687]
[1730704937818,0.16590389,69019.0,69018.0,0.072491]
[1730704942727,0.16590389,69019.0,69018.0,0.11599352]
[1730704942919,0.16590389,69019.0,69018.0,0.072491]
[1730704944627,0.16490389,69019.0,69018.0,0.072491]
[1730704944827,0.16590389,69019.0,69018.0,0.072491]
[1730704945528,0.16490389,69019.0,69018.0,0.072491]
[1730704945721,0.16590389,69019.0,69018.0,0.072491]
[1730704946123,0.002,69019.0,69018.0,0.085491]
[1730704946325,0.001,69019.0,69018.0,0.14350094]
[1730704946628,0.002,69019.0,69018.0,0.14350094]
[1730704947529,0.07449,69019.0,69018.0,0.14350094]
[1730704948030,0.16590389,69019.0,69018.0,0.14350094]
[1730704948727,0.16590389,69019.0,69018.0,0.085491]
[1730704949124,0.16590389,69019.0,69018.0,0.12899857]
[1730704949519,0.16590389,69019.0,69018.0,0.085491]
[1730704954515,0.16590389,69019.0,69018.0,0.013]
[1730704957223,0.16590389,69019.0,69016.0,0.3608]
[1730704957224,0.072493,69017.0,69016.0,0.3608]
[1730704957531,0.03627057,69017.0,69016.0,0.3608]
[1730704958134,0.072495,69015.0,69014.0,0.04350614]
[1730704958331,0.072499,69011.0,69010.0,0.00076]
[1730704958531,0.072501,69009.0,69008.0,0.072502]
[1730704959627,0.09141389,69011.0,69008.0,0.072502]
[1730704959826,0.09141389,69011.0,69010.0,0.11599373]
[1730704959827,0.16391389,69011.0,69010.0,0.11599373]
[1730704960233,0.16491389,69011.0,69010.0,0.0835]
[1730704961234,0.16491389,69011.0,69010.0,0.0725]
[1730704961936,0.16591389,69011.0,69010.0,0.0845]
[1730704962934,0.16491389,69011.0,69010.0,0.0845]
[1730704963131,0.16591389,69011.0,69010.0,0.0965]
[1730704965635,0.09341389,69011.0,69010.0,0.0965]
[1730704966726,0.16591289,69011.0,69010.0,0.0965]
[1730704968328,0.074499,69011.0,69010.0,0.0965]
[1730704968839,0.16591289,69011.0,69010.0,0.0965]
[1730704971734,0.09341389,69011.0,69010.0,0.0965]
[1730704972740,0.16591289,69011.0,69010.0,0.0965]
[1730704974630,0.16591289,69011.0,69010.0,0.13997544]
[1730704976433,0.16591289,69011.0,69010.0,0.0965]
[1730704983038,0.16591289,69011.0,69010.0,0.13997544]
[1730704983755,0.16591289,69011.0,69010.0,0.024]
[1730704983937,0.16591289,69011.0,69010.0,0.06747544]
[1730704984135,0.16591289,69011.0,69010.0,0.024]
[1730704984340,0.16591289,69011.0,69010.0,0.06747544]
[1730704987755,0.16591289,69011.0,69010.0,0.13997544]
[1730704989750,0.16591289,69011.0,69010.0,0.0965]
[1730704991162,0.16591289,69011.0,69010.0,0.024]
[1730704992643,0.52671289,69011.0,69010.0,0.024]
[1730704993550,1.08229984,69011.0,69000.0,0.1]
[1730704993759,0.52472289,69001.0,69000.0,0.1]
[1730704994060,0.62112289,69001.0,69000.0,0.1]
[1730704994646,0.62112289,69001.0,69000.0,0.112]
[1730704995249,0.62112289,69001.0,69000.0,0.1]
[1730704995453,0.62212289,69001.0,69000.0,0.112]
[1730704996255,0.62212289,69001.0,69000.0,0.114]
[1730704996961,0.62112289,69001.0,69000.0,0.1]
[1730704997262,0.62212289,69001.0,69000.0,0.1]
[1730704999161,0.64505847,69001.0,69000.0,0.1]
[1730705004654,1.17123236,69001.0,69000.0,0.1]
[1730705005048,1.07981847,69001.0,69000.0,0.1]
[1730705005553,1.17123236,69001.0,69000.0,0.1]
[1730705005749,1.07981847,69001.0,69000.0,0.1]
[1730705006057,1.18423236,69001.0,69000.0,0.1]
[1730705006359,1.41172336,69001.0,68979.0,0.04347544]
[1730705006655,0.07253,68982.0,68981.0,0.07253]
[1730705007263,0.16394389,68982.0,68981.0,0.07253]
[1730705009663,0.16394389,68982.0,68981.0,0.07353]
[1730705010262,0.16394389,68982.0,68981.0,0.07253]
[1730705010263,0.16994389,68982.0,68981.0,0.07253]
[1730705010764,0.16394389,68982.0,68981.0,0.07353]
[1730705011166,0.16394389,68982.0,68981.0,0.07253]
[1730705011361,0.19136595,68982.0,68981.0,0.07253]
[1730705011869,0.18636595,68982.0,68981.0,0.07253]
[1730705012164,0.18736595,68982.0,68981.0,0.07453]
[1730705013380,0.18636595,68982.0,68981.0,0.07353]
[1730705013666,0.19136595,68982.0,68981.0,0.07353]
[1730705014056,0.18636595,68982.0,68981.0,0.07453]
[1730705014662,0.18636595,68982.0,68981.0,0.07353]
[1730705014867,0.19136595,68982.0,68981.0,0.07353]
[1730705015166,0.19136595,68982.0,68981.0,0.001]
[1730705015761,0.072532,68979.0,68978.0,0.464492]
[1730705015960,0.072532,68979.0,68978.0,0.463732]
[1730705017067,0.073532,68979.0,68978.0,0.464732]
[1730705018372,0.074532,68979.0,68978.0,0.465732]
[1730705021262,0.16594589,68979.0,68978.0,0.002]
[1730705022667,0.25735978,68979.0,68978.0,0.002]
[1730705023160,0.26535978,68979.0,68978.0,0.001]
[1730705023470,0.26535978,68979.0,68971.0,0.07254]
[1730705023471,0.07254,68972.0,68971.0,0.07254]
[1730705023670,0.62111389,68972.0,68971.0,0.07254]
[1730705024567,0.072541,68971.0,68970.0,0.0332]
[1730705024762,0.072543,68969.0,68964.0,0.3608]
[1730705024970,0.25537478,68965.0,68964.0,0.433348]
[1730705025171,0.16396089,68965.0,68964.0,0.433348]
[1730705026569,0.16496089,68965.0,68964.0,0.434348]
[1730705027065,0.18763856,68965.0,68964.0,0.434348]
[1730705027978,0.18863856,68965.0,68964.0,0.435348]
[1730705031160,0.21249156,68965.0,68964.0,0.435348]
[1730705031371,0.28503856,68965.0,68964.0,0.435348]
[1730705032275,0.18863856,68965.0,68964.0,0.435348]
[1730705034368,0.11609156,68965.0,68964.0,0.435348]
[1730705037072,0.18863856,68965.0,68964.0,0.435348]
[1730705046578,0.64085245,68965.0,68964.0,0.002]
[1730705046779,0.64579856,68965.0,68964.0,0.074548]
[1730705047776,0.64579856,68965.0,68964.0,0.073548]
[1730705047777,0.64479856,68965.0,68964.0,0.073548]
[1730705047982,0.64479856,68965.0,68964.0,0.074548]
[1730705048180,0.57225156,68965.0,68964.0,0.074548]
[1730705048588,0.57925156,68965.0,68964.0,0.073548]
[1730705048977,0.21845156,68965.0,68964.0,0.073548]
[1730705049279,0.12209156,68965.0,68964.0,0.072548]
[1730705049479,0.12309156,68965.0,68964.0,0.073548]
[1730705050783,0.11509156,68965.0,68964.0,0.074548]
[1730705051886,0.11509156,68965.0,68964.0,0.073548]
[1730705052085,0.11609156,68965.0,68964.0,0.074548]
[1730705052288,0.11609156,68965.0,68964.0,0.435348]
[1730705052483,0.002,68965.0,68964.0,0.435348]
[1730705053588,0.001,68965.0,68964.0,0.434348]
[1730705053792,0.002,68965.0,68964.0,0.435348]
[1730705056683,0.09141389,68972.0,68964.0,0.45321389]
[1730705056887,0.09141389,68972.0,68971.0,0.433341]
[1730705057096,0.09141389,68976.0,68975.0,0.072536]
[1730705057388,0.10543,68981.0,68979.0,0.072532]
[1730705057389,0.0329,68981.0,68979.0,0.072532]
[1730705057584,0.45716,68980.0,68979.0,0.072532]
[1730705057783,0.54857389,68980.0,68979.0,0.072532]
[1730705057986,0.62110489,68980.0,68979.0,0.072532]
[1730705058288,0.64418082,68980.0,68979.0,0.072532]
[1730705059892,0.65518082,68980.0,68979.0,0.072532]
[1730705060398,0.65618082,68980.0,68979.0,0.072532]
[1730705060788,0.65818082,68980.0,68979.0,0.072532]
[1730705060993,0.65718082,68980.0,68979.0,0.072532]
[1730705061699,0.65818082,68980.0,68979.0,0.072532]
[1730705062090,0.56182082,68980.0,68979.0,0.072532]
[1730705062293,0.65810082,68980.0,68979.0,0.072532]
[1730705062893,0.65610082,68980.0,68979.0,0.072532]
[1730705063082,0.65010082,68980.0,68979.0,0.072532]
[1730705063285,0.65710082,68980.0,68979.0,0.072532]
[1730705063595,0.65010082,68980.0,68979.0,0.072532]
[1730705063794,0.65610082,68980.0,68979.0,0.072532]
[1730705064398,0.65010082,68980.0,68979.0,0.072532]
[1730705064598,0.12848982,68980.0,68979.0,0.433332]
[1730705064889,0.20102082,68980.0,68979.0,0.433332]
[1730705065298,0.20102082,68980.0,68979.0,0.072532]
[1730705065595,0.072538,68974.0,68973.0,0.105337]
[1730705065784,0.16395189,68974.0,68973.0,0.105337]
[1730705066791,0.16395189,68974.0,68973.0,0.14158306]
[1730705067000,0.16495189,68974.0,68973.0,0.14258306]
[1730705067206,0.16595189,68974.0,68973.0,0.14358306]
[1730705068097,0.16495189,68974.0,68973.0,0.14358306]
[1730705069392,0.16395189,68974.0,68973.0,0.14358306]
[1730705069794,0.16395189,68974.0,68973.0,0.14258306]
[1730705070103,0.16995189,68974.0,68973.0,0.14158306]
[1730705070292,0.17595189,68974.0,68973.0,0.14158306]
[1730705072001,0.084538,68974.0,68973.0,0.14158306]
[1730705073103,0.012,68974.0,68973.0,0.14158306]
[1730705074198,0.006,68974.0,68973.0,0.14158306]
[1730705074506,0.01,68974.0,68973.0,0.14158306]
[1730705074896,0.01,68974.0,68973.0,0.17208306]
[1730705075903,0.005,68974.0,68973.0,0.21561639]
[1730705076305,0.006,68974.0,68973.0,0.30803028]
[1730705076504,0.16394589,68979.0,68978.0,0.072534]
[1730705076810,0.16394389,68982.0,68981.0,0.072528]
[1730705077397,0.18678369,68982.0,68981.0,0.072528]
[1730705078112,0.19478369,68982.0,68981.0,0.072528]
[1730705078803,0.008,68982.0,68981.0,0.072528]
[1730705079005,0.09141389,68994.0,68981.0,0.51054051]
[1730705079204,0.07469299,68993.0,68989.0,0.072522]
[1730705079409,0.07469299,68993.0,68992.0,0.072519]
[1730705079602,0.16610688,68993.0,68992.0,0.072519]
[1730705079913,0.16393189,68993.0,68992.0,0.072519]
[1730705080298,0.10541389,68993.0,68992.0,0.072519]
[1730705080702,0.014,68993.0,68992.0,0.072519]
[1730705080923,0.028,68993.0,68992.0,0.52573289]
[1730705081795,0.16391989,69005.0,69004.0,0.072504]
[1730705082595,0.18706909,69005.0,69004.0,0.072504]
[1730705083507,0.20106909,69005.0,69004.0,0.072504]
[1730705083706,0.20806909,69005.0,69004.0,0.073504]
[1730705097022,0.1166552,69005.0,69004.0,0.073504]
[1730705097925,0.1166552,69005.0,69004.0,0.16491789]
[1730705097926,0.021,69005.0,69004.0,0.16491789]
[1730705098232,0.093505,69005.0,69004.0,0.073504]
[1730705098415,0.18491889,69005.0,69004.0,0.073504]
[1730705098619,0.16391889,69005.0,69004.0,0.072504]
[1730705098820,0.17391889,69005.0,69004.0,0.074504]
[1730705099422,0.19612282,69005.0,69004.0,0.074504]
[1730705102837,0.19612282,69005.0,69004.0,0.11073378]
[1730705105225,0.10470893,69005.0,69004.0,0.11073378]
[1730705108133,0.09470893,69005.0,69004.0,0.10873378]
[1730705108429,0.10470893,69005.0,69004.0,0.11073378]
[1730705108937,0.10470893,69005.0,69004.0,0.10973378]
[1730705109636,0.18612282,69005.0,69004.0,0.15219621]
[1730705109831,0.19412282,69005.0,69004.0,0.15319621]
[1730705110336,0.19412282,69005.0,69004.0,0.10973378]
[1730705113636,0.19412282,69005.0,69004.0,0.03722978]
[1730705113841,0.67527618,69005.0,69004.0,0.03722978]
[1730705114033,0.58386229,69005.0,69004.0,0.03722978]
[1730705118345,0.55492282,69005.0,69004.0,0.03722978]
[1730705119648,0.19412282,69005.0,69004.0,0.03722978]
[1730705120247,0.19412282,69005.0,69004.0,0.10973578]
[1730705123043,0.19412282,69005.0,69004.0,0.03722978]
[1730705126556,0.10270893,69005.0,69004.0,0.10973578]
[1730705137750,0.03020393,69005.0,69004.0,0.10973578]
[1730705137959,0.008,69005.0,69004.0,0.20114967]
[1730705138151,0.008,69005.0,69004.0,0.56194967]
[1730705142162,0.008,69005.0,69004.0,0.59254967]
[1730705143857,0.008,69005.0,69004.0,0.50113578]
[1730705144050,0.080505,69005.0,69004.0,0.50113578]
[1730705144757,0.008,69005.0,69004.0,0.50113578]
[1730705144961,0.008,69005.0,69004.0,0.59254967]
[1730705145361,0.008,69005.0,69004.0,0.50113578]
[1730705145574,0.008,69005.0,69004.0,0.54463371]
[1730705146459,0.008,69005.0,69004.0,0.50113578]
[1730705148863,0.008,69005.0,69004.0,0.93589578]
[1730705149066,0.072494,69016.0,69015.0,0.072495]
[1730705149266,0.072494,69016.0,69015.0,0.433295]
[1730705150465,0.082494,69016.0,69015.0,0.434295]
[1730705151172,0.01,69016.0,69015.0,0.434295]
[1730705151471,0.01,69016.0,69015.0,0.468495]
[1730705161776,0.082494,69016.0,69015.0,0.468495]
[1730705161978,0.01,69016.0,69015.0,0.468495]
[1730705162583,0.01,69016.0,69015.0,0.107695]
[1730705162881,0.01,69016.0,69015.0,0.468495]
[1730705165887,0.082494,69016.0,69015.0,0.468495]
[1730705166075,0.082494,69016.0,69015.0,0.002]
[1730705166076,0.26532178,69016.0,69015.0,0.002]
[1730705166481,0.35874162,69016.0,69015.0,0.002]
[1730705166677,0.35863835,69016.0,69015.0,0.002]
[1730705167787,0.45471835,69016.0,69015.0,0.002]
[1730705168892,0.36330446,69016.0,69015.0,0.002]
[1730705170483,0.33378789,69016.0,69015.0,0.002]
[1730705181096,0.33378789,69016.0,69015.0,0.038224]
[1730705181501,0.36341162,69016.0,69015.0,0.038224]
[1730705182908,0.33378789,69016.0,69015.0,0.038224]
[1730705183202,0.26998789,69016.0,69015.0,0.038224]
[1730705183595,0.082494,69016.0,69015.0,0.20213289]
[1730705184796,0.11219351,69016.0,69015.0,0.20213289]
[1730705185008,0.082494,69016.0,69015.0,0.20213289]
[1730705185508,0.11215913,69016.0,69015.0,0.038224]
[1730705185706,0.082494,69016.0,69015.0,0.038224]
[1730705197214,0.11207206,69016.0,69015.0,0.038224]
[1730705202918,0.20348595,69016.0,69015.0,0.038224]
[1730705203427,0.11207206,69016.0,69015.0,0.038224]
[1730705204320,0.082494,69016.0,69015.0,0.038224]
[1730705204615,0.11195057,69016.0,69015.0,0.038224]
[1730705204815,0.63804446,69016.0,69015.0,0.038224]
[1730705205910,0.54663057,69016.0,69015.0,0.038224]
[1730705206103,0.67355647,69016.0,69015.0,0.038224]
[1730705207727,0.14746258,69016.0,69015.0,0.038224]
[1730705208613,0.11195057,69016.0,69015.0,0.038224]
[1730705209731,0.20336446,69016.0,69015.0,0.038224]
[1730705210026,0.29940446,69016.0,69015.0,0.038224]
[1730705210714,0.73408446,69016.0,69015.0,0.038224]
[1730705210925,0.072505,69005.0,69004.0,0.03622978]
[1730705211110,0.16391889,69005.0,69004.0,0.03622978]
[1730705211424,0.1975623,69005.0,69004.0,0.03622978]
[1730705211621,0.168545,69005.0,69004.0,0.03622978]
[1730705212120,0.168545,69005.0,69004.0,0.03722978]
[1730705212320,0.170545,69005.0,69004.0,0.03722978]
[1730705214824,0.19274597,69005.0,69004.0,0.03722978]
[1730705218527,0.02420097,69005.0,69004.0,0.10973578]
[1730705218730,0.168499,69011.0,69010.0,0.0725]
[1730705218926,0.168499,69011.0,69010.0,0.52471389]
[1730705219629,0.072499,69011.0,69010.0,0.52471389]
[1730705220226,0.072496,69014.0,69013.0,0.072495]
[1730705221428,0.02306647,69016.0,69013.0,0.09141389]
[1730705221626,0.072494,69016.0,69015.0,0.072495]
[1730705223018,0.072495,69015.0,69014.0,0.103295]
[1730705223735,0.072495,69015.0,69014.0,0.0308]
[1730705223923,0.072496,69014.0,69013.0,0.001]
[1730705224120,0.072505,69005.0,69004.0,0.03622978]
[1730705224325,0.55356,69005.0,69004.0,0.03622978]
[1730705224824,0.64497389,69005.0,69004.0,0.03622978]
[1730705225528,0.64597389,69005.0,69004.0,0.03722978]
[1730705225936,0.55456,69005.0,69004.0,0.03722978]
[1730705226630,0.52571889,69005.0,69004.0,0.03722978]
[1730705226937,0.52671889,69005.0,69004.0,0.03822978]
[1730705227435,0.435305,69005.0,69004.0,0.03822978]
[1730705228238,0.46402171,69005.0,69004.0,0.03822978]
[1730705229739,0.48703139,69005.0,69004.0,0.03822978]
[1730705230841,0.45831468,69005.0,69004.0,0.03822978]
[1730705238737,0.48691815,69005.0,69004.0,0.03822978]
[1730705244244,0.45831468,69005.0,69004.0,0.11073578]
[1730705244551,0.38580968,69005.0,69004.0,0.11073578]
[1730705248343,0.45831468,69005.0,69004.0,0.11073578]
[1730705249449,0.54975339,69005.0,69004.0,0.11073578]
[1730705252544,0.54975339,69005.0,69004.0,0.03822978]
[1730705253354,0.54975339,69005.0,69004.0,0.11073578]
[1730705253747,0.09751468,69005.0,69004.0,0.11073578]
[1730705256243,0.18895339,69005.0,69004.0,0.11073578]
[1730705256442,0.18895339,69005.0,69004.0,0.03822978]
[1730705270051,0.09751468,69005.0,69004.0,0.03822978]
[1730705270254,0.09751468,69005.0,69004.0,0.11073578]
[1730705270456,0.02500968,69005.0,69004.0,0.11073578]
[1730705270656,0.002,69005.0,69004.0,0.11073578]
[1730705272769,0.074505,69005.0,69004.0,0.11073578]
[1730705274068,0.002,69005.0,69004.0,0.47153578]
[1730705276060,0.074505,69005.0,69004.0,0.47153578]
[1730705280877,0.002,69005.0,69004.0,0.47153578]
[1730705281076,0.002,69005.0,69004.0,0.11073578]
[1730705281374,0.074505,69005.0,69004.0,0.11073578]
[1730705281563,0.074505,69005.0,69004.0,0.03822978]
[1730705282868,0.16594371,69005.0,69004.0,0.03822978]
[1730705283172,0.074505,69005.0,69004.0,0.03822978]
[1730705284672,0.10297464,69005.0,69004.0,0.03822978]
[1730705285274,0.10289711,69005.0,69004.0,0.03822978]
[1730705290173,0.19433582,69005.0,69004.0,0.03245378]
[1730705290373,0.19433582,69005.0,68990.0,0.07469409]
[1730705290374,0.072512,68998.0,68990.0,0.07469409]
[1730705290577,0.07252,68991.0,68990.0,0.07469409]
[1730705291676,0.07252,68991.0,68990.0,0.10269409]
[1730705292573,0.07252,68991.0,68990.0,0.03017409]
[1730705293184,0.07252,68991.0,68990.0,0.01617409]
[1730705293384,0.07252,68991.0,68990.0,0.03017409]
[1730705294082,0.07652,68991.0,68990.0,0.01717409]
[1730705294386,0.07652,68991.0,68990.0,0.00617409]
[1730705296687,0.07652,68991.0,68990.0,0.00317409]
[1730705296876,0.07252,68991.0,68990.0,0.00217409]
[1730705297077,0.07952,68991.0,68990.0,0.00417409]
[1730705298080,0.07952,68991.0,68990.0,0.00317409]
[1730705298081,0.07752,68991.0,68990.0,0.00317409]
[1730705298281,0.07952,68991.0,68990.0,0.00417409]
[1730705299489,0.07852,68991.0,68990.0,0.00417409]
[1730705299682,0.07652,68991.0,68990.0,0.00317409]
[1730705299882,0.07852,68991.0,68990.0,0.00417409]
[1730705300579,0.07852,68991.0,68990.0,0.07669509]
[1730705300784,0.10153527,68991.0,68990.0,0.00417409]
[1730705301692,0.19785527,68991.0,68990.0,0.07669509]
[1730705303793,0.19785527,68991.0,68990.0,0.07469509]
[1730705303794,0.19185527,68991.0,68990.0,0.07469509]
[1730705303981,0.006,68991.0,68990.0,0.43749509]
[1730705304296,0.3608,68997.0,68996.0,0.072515]
[1730705304486,0.3608,68997.0,68996.0,0.16395371]
[1730705304789,0.09143871,69004.0,69001.0,0.072509]
[1730705304790,0.072509,69002.0,69001.0,0.072509]
[1730705313501,0.072509,69002.0,68997.0,0.0314]
[1730705313708,0.16395071,68998.0,68997.0,0.103914]
[1730705314600,0.16395071,68998.0,68997.0,0.013]
[1730705314997,0.52475071,68998.0,68997.0,0.013]
[1730705316200,0.45223871,68998.0,68995.0,0.072515]